fUSD/lending_fUSD_20240324
["ID","MTS","AMOUNT","RATE_DAILY","PERIOD"]
[320353455,1711319442168,-500.0,0.00019178,2]
[320353456,1711319442178,-500.0,0.00019178,2]
[320353457,1711319442187,-551.29,0.00019178,2]
[320353458,1711319442198,-500.0,0.00019178,2]
[320353459,1711319442208,-621.31,0.00019178,2]
[320353460,1711319442217,-636.42282647,0.00019178,2]
[320353461,1711319442227,-500.0,0.00019178,2]
[320353462,1711319442236,-363.13838943,0.00019178,2]
[320353463,1711319442245,-500.0,0.00019178,2]
[320353464,1711319442254,-500.0,0.00019178,2]
[320353465,1711319442264,-528.48,0.00019178,2]
[320353466,1711319442273,-500.0,0.00019178,2]
[320353467,1711319442282,-500.0,0.00019178,2]
[320353468,1711319442292,-500.0,0.00019178,2]
[320353469,1711319442301,-500.0,0.00019178,2]
[320353470,1711319442312,-500.0,0.00019178,2]
[320353471,1711319442322,-500.0,0.00019178,2]
[320353472,1711319442331,-500.0,0.00019178,2]
[320353473,1711319442342,-500.0,0.00019178,2]
[320353474,1711319442353,-500.0,0.00019178,2]
[320353475,1711319442363,-500.0,0.00019178,2]
[320353476,1711319442373,-500.0,0.00019178,2]
[320353477,1711319442382,-819.89,0.00019178,2]
[320353478,1711319442394,-500.0,0.00019178,2]
[320353479,1711319442403,-500.0,0.00019178,2]
[320353480,1711319442412,-500.0,0.00019178,2]
[320353481,1711319442421,-500.0,0.00019178,2]
[320353482,1711319442430,-500.99213616,0.00019178,2]
[320353483,1711319442440,-500.0,0.00019178,2]
[320353484,1711319442449,-744.6,0.00019178,2]
[320353485,1711319442459,-500.0,0.00019178,2]
[320353486,1711319442468,-500.0,0.00019178,2]
[320353487,1711319442477,-500.0,0.00019178,2]
[320353488,1711319442487,-350.0,0.00019178,2]
[320353489,1711319442496,-500.0,0.00019178,2]
[320353490,1711319442505,-500.0,0.00019178,2]
[320353491,1711319442515,-500.0,0.00019178,2]
[320353492,1711319442526,-500.0,0.00019178,2]
[320353493,1711319442535,-500.0,0.00019178,2]
[320353494,1711319442545,-500.0,0.00019178,2]
[320353495,1711319442554,-691.39,0.00019178,2]
[320353496,1711319442564,-500.0,0.00019178,2]
[320353497,1711319442574,-500.0,0.00019178,2]
[320353498,1711319442584,-500.0,0.00019178,2]
[320353499,1711319442593,-1168.56,0.00019178,2]
[320353500,1711319442602,-500.0,0.00019178,2]
[320353501,1711319442612,-500.0,0.00019178,2]
[320353502,1711319442622,-501.58522336,0.00019178,2]
[320353503,1711319442631,-500.0,0.00019178,2]
[320353504,1711319442642,-500.0,0.00019178,2]
[320353505,1711319442651,-500.0,0.00019178,2]
[320353506,1711319442660,-500.0,0.00019178,2]
[320353507,1711319442669,-500.0,0.00019178,2]
[320353508,1711319442679,-500.0,0.00019178,2]
[320353509,1711319442688,-182.71769144,0.00019178,2]
[320353510,1711319442698,-500.0,0.00019178,2]
[320353511,1711319442707,-500.0,0.00019178,2]
[320353512,1711319442716,-500.0,0.00019178,2]
[320353513,1711319442726,-500.0,0.00019178,2]
[320353514,1711319442736,-500.0,0.00019178,2]
[320353515,1711319442746,-500.0,0.00019178,2]
[320353516,1711319442755,-500.0,0.00019178,2]
[320353517,1711319442764,-500.0,0.00019178,2]
[320353518,1711319442773,-500.0,0.00019178,2]
[320353519,1711319442782,-500.0,0.00019178,2]
[320353520,1711319442791,-500.0,0.00019178,2]
[320353521,1711319442800,-500.0,0.00019178,2]
[320353522,1711319442809,-527.06,0.00019178,2]
[320353523,1711319442818,-200.0,0.00019178,10]
[320353524,1711319442827,-500.0,0.00019178,2]
[320353525,1711319442836,-500.0,0.00019178,2]
[320353527,1711319442845,-500.0,0.00019178,2]
[320353528,1711319442855,-500.0,0.00019178,2]
[320353529,1711319442864,-747.23,0.00019178,2]
[320353530,1711319442873,-500.0,0.00019178,2]
[320353531,1711319442883,-500.0,0.00019178,2]
[320353532,1711319442893,-500.0,0.00019178,2]
[320353533,1711319442902,-500.0,0.00019178,2]
[320353534,1711319442910,-500.0,0.00019178,2]
[320353535,1711319442919,-704.9,0.00019178,2]
[320353536,1711319442929,-500.0,0.00019178,2]
[320353537,1711319442937,-500.0,0.00019178,2]
[320353538,1711319442947,-1025.91,0.00019178,2]
[320353539,1711319442956,-500.0,0.00019178,2]
[320353540,1711319442964,-901.84,0.00019178,2]
[320353541,1711319442974,-500.0,0.00019178,2]
[320353542,1711319442982,-500.0,0.00019178,2]
[320353543,1711319442991,-500.0,0.00019178,2]
[320353544,1711319443001,-500.0,0.00019178,2]
[320353545,1711319443010,-613.68,0.00019178,2]
[320353546,1711319443019,-500.0,0.00019178,2]
[320353547,1711319443028,-500.0,0.00019178,2]
[320353548,1711319443037,-500.0,0.00019178,2]
[320353549,1711319443046,-500.0,0.00019178,2]
[320353550,1711319443056,-500.0,0.00019178,2]
[320353553,1711319443065,-500.0,0.00019178,2]
[320353555,1711319443075,-500.0,0.00019178,2]
[320353557,1711319443084,-500.0,0.00019178,2]
[320353559,1711319443093,-500.0,0.00019178,2]
[320353561,1711319443102,-500.0,0.00019178,2]
[320353563,1711319443112,-500.0,0.00019178,2]
[320353565,1711319443121,-500.0,0.00019178,2]
[320353567,1711319443130,-500.0,0.00019178,2]
[320353569,1711319443140,-500.0,0.00019178,2]
[320353571,1711319443149,-166.57574663,0.00019178,2]
[320353573,1711319443158,-500.0,0.00019178,2]
[320353575,1711319443167,-500.0,0.00019178,2]
[320353577,1711319443176,-366.38002305,0.00019178,2]
[320353578,1711319443186,-500.0,0.00019178,2]
[320353579,1711319443195,-500.0,0.00019178,2]
[320353580,1711319443204,-500.0,0.00019178,2]
[320353581,1711319443214,-500.0,0.00019178,2]
[320353582,1711319443224,-500.0,0.00019178,2]
[320353583,1711319443234,-500.0,0.00019178,2]
[320353584,1711319443244,-500.0,0.00019178,2]
[320353585,1711319443254,-500.0,0.00019178,2]
[320353586,1711319443264,-500.0,0.00019178,2]
[320353587,1711319443275,-500.0,0.00019178,2]
[320353588,1711319443285,-500.0,0.00019178,2]
[320353589,1711319443296,-689.01,0.00019178,2]
[320353590,1711319443305,-501.52877473,0.00019178,2]
[320353591,1711319443314,-500.0,0.00019178,2]
[320353592,1711319443325,-500.0,0.00019178,2]
[320353593,1711319443336,-500.0,0.00019178,2]
[320353594,1711319443346,-500.0,0.00019178,2]
[320353595,1711319443356,-500.0,0.00019178,2]
[320353596,1711319443366,-500.0,0.00019178,2]
[320353597,1711319443376,-500.0,0.00019178,2]
[320353598,1711319443387,-500.0,0.00019178,2]
[320353599,1711319443397,-500.0,0.00019178,2]
[320353600,1711319443407,-500.0,0.00019178,2]
[320353601,1711319443416,-500.0,0.00019178,2]
[320353602,1711319443425,-170.56894454,0.00019178,2]
[320353603,1711319443435,-500.0,0.00019178,2]
[320353604,1711319443445,-500.0,0.00019178,2]
[320353605,1711319443456,-500.3723162,0.00019178,2]
[320353606,1711319443467,-500.0,0.00019178,2]
[320353607,1711319443477,-500.55273187,0.00019178,2]
[320353608,1711319443487,-500.0,0.00019178,2]
[320353609,1711319443496,-672.54,0.00019178,2]
[320353610,1711319443506,-500.0,0.00019178,2]
[320353611,1711319443516,-183.67068891,0.00019178,2]
[320353612,1711319443527,-500.0,0.00019178,2]
[320353613,1711319443541,-500.0,0.00019178,2]
[320353614,1711319443764,-500.0,0.00019178,2]
[320353615,1711319443774,-500.0,0.00019178,2]
[320353616,1711319443783,-503.99616257,0.00019178,2]
[320353617,1711319443793,-159.75721731,0.00019178,2]
[320353618,1711319443802,-500.0,0.00019178,2]
[320353619,1711319443812,-500.0,0.00019178,2]
[320353620,1711319443822,-500.0,0.00019178,2]
[320353621,1711319443832,-500.0,0.00019178,2]
[320353622,1711319443841,-500.0,0.00019178,2]
[320353623,1711319443852,-500.0,0.00019178,2]
[320353624,1711319443861,-501.23246652,0.00019178,2]
[320353625,1711319443871,-500.0,0.00019178,2]
[320353626,1711319443881,-500.0,0.00019178,2]
[320353627,1711319443892,-552.84,0.00019178,2]
[320353628,1711319443903,-585.85,0.00019178,2]
[320353629,1711319443912,-500.0,0.00019178,2]
[320353630,1711319443921,-500.0,0.00019178,2]
[320353631,1711319443931,-500.0,0.00019178,2]
[320353632,1711319443941,-505.92387174,0.00019178,2]
[320353633,1711319443951,-500.0,0.00019178,2]
[320353634,1711319443961,-500.0,0.00019178,2]
[320353635,1711319443971,-700.92,0.00019178,2]
[320353636,1711319443980,-500.0,0.00019178,2]
[320353637,1711319443991,-500.0,0.00019178,2]
[320353638,1711319444000,-500.0,0.00019178,2]
[320353639,1711319444010,-500.0,0.00019178,2]
[320353640,1711319444020,-500.0,0.00019178,2]
[320353641,1711319444029,-500.0,0.00019178,2]
[320353642,1711319444039,-500.0,0.00019178,2]
[320353643,1711319444048,-304.32039367,0.00019178,2]
[320353644,1711319444058,-500.0,0.00019178,2]
[320353645,1711319444068,-304.54674114,0.00019178,2]
[320353646,1711319444078,-500.0,0.00019178,2]
[320353647,1711319444088,-500.82189528,0.00019178,2]
[320353648,1711319444097,-858.93,0.00019178,2]
[320353649,1711319444107,-500.0,0.00019178,2]
[320353650,1711319444116,-500.0,0.00019178,2]
[320353651,1711319444126,-500.0,0.00019178,2]
[320353652,1711319444137,-500.0,0.00019178,2]
[320353653,1711319444147,-150.0,0.00019178,2]
[320353654,1711319444157,-853.76,0.00019178,2]
[320353655,1711319444167,-558.34,0.00019178,2]
[320353656,1711319444177,-501.46496695,0.00019178,2]
[320353657,1711319444186,-500.0,0.00019178,2]
[320353658,1711319444196,-500.0,0.00019178,2]
[320353659,1711319444206,-500.0,0.00019178,2]
[320353660,1711319444215,-500.0,0.00019178,2]
[320353661,1711319444226,-500.0,0.00019178,2]
[320353662,1711319444236,-500.0,0.00019178,2]
[320353663,1711319444246,-500.0,0.00019178,2]
[320353664,1711319444255,-500.0,0.00019178,2]
[320353665,1711319444264,-500.0,0.00019178,2]
[320353666,1711319444274,-500.0,0.00019178,2]
[320353667,1711319444284,-500.0,0.00019178,2]
[320353668,1711319444294,-500.0,0.00019178,2]
[320353669,1711319444303,-500.0,0.00019178,2]
[320353670,1711319444313,-1155.73,0.00019178,2]
[320353671,1711319444323,-592.01434971,0.00019178,2]
[320353672,1711319444331,-500.0,0.00019178,2]
[320353673,1711319444341,-500.0,0.00019178,2]
[320353674,1711319444350,-500.0,0.00019178,2]
[320353675,1711319444359,-500.0,0.00019178,2]
[320353676,1711319444368,-500.0,0.00019178,2]
[320353677,1711319444378,-500.0,0.00019178,2]
[320353678,1711319444387,-500.0,0.00019178,2]
[320353679,1711319444396,-500.0,0.00019178,2]
[320353680,1711319444406,-500.0,0.00019178,2]
[320353681,1711319444415,-500.0,0.00019178,2]
[320353682,1711319444424,-500.0,0.00019178,2]
[320353683,1711319444434,-752.32,0.00019178,2]
[320353684,1711319444444,-500.0,0.00019178,2]
[320353685,1711319444454,-500.0,0.00019178,2]
[320353686,1711319444463,-500.0,0.00019178,2]
[320353687,1711319444473,-830.88,0.00019178,2]
[320353688,1711319444482,-165.48353895,0.00019178,2]
[320353689,1711319444492,-500.0,0.00019178,2]
[320353690,1711319444501,-450.83773182,0.00019178,2]
[320353692,1711319444510,-500.0,0.00019178,2]
[320353694,1711319444520,-615.73,0.00019178,2]
[320353696,1711319444531,-699.0,0.00019178,2]
[320353698,1711319444542,-500.0,0.00019178,2]
[320353700,1711319444552,-500.0,0.00019178,2]
[320353702,1711319444562,-500.65069566,0.00019178,2]
[320353704,1711319444572,-500.0,0.00019178,2]
[320353706,1711319444581,-500.0,0.00019178,2]
[320353708,1711319444590,-500.0,0.00019178,2]
[320353710,1711319444600,-572.11,0.00019178,2]
[320353712,1711319444610,-500.0,0.00019178,2]
[320353714,1711319444620,-500.0,0.00019178,2]
[320353717,1711319444630,-500.0,0.00019178,2]
[320353718,1711319444640,-500.0,0.00019178,2]
[320353721,1711319444650,-366.65671065,0.00019178,2]
[320353723,1711319444659,-1713.84,0.00019178,2]
[320353724,1711319444668,-500.0,0.00019178,2]
[320353727,1711319444678,-500.0,0.00019178,2]
[320353729,1711319444687,-504.15303236,0.00019178,2]
[320353731,1711319444697,-500.0,0.00019178,2]
[320353732,1711319444706,-500.0,0.00019178,2]
[320353735,1711319444715,-500.0,0.00019178,2]
[320353737,1711319444725,-500.0,0.00019178,2]
[320353739,1711319444734,-500.0,0.00019178,2]
[320353741,1711319444743,-997.95,0.00019178,2]
[320353743,1711319444752,-500.0,0.00019178,2]
[320353745,1711319444762,-500.0,0.00019178,2]
[320353747,1711319444771,-500.0,0.00019178,2]
[320353749,1711319444780,-334.23343088,0.00019178,2]
[320353751,1711319444789,-500.0,0.00019178,2]
[320353753,1711319444798,-500.0,0.00019178,2]
[320353755,1711319444807,-500.0,0.00019178,2]
[320353757,1711319444817,-556.36,0.00019178,2]
[320353759,1711319444826,-500.0,0.00019178,2]
[320353761,1711319444836,-1507.64,0.00019178,2]
[320353762,1711319444845,-500.0,0.00019178,2]
[320353765,1711319444854,-500.0,0.00019178,2]
[320353767,1711319444864,-500.0,0.00019178,2]
[320353769,1711319444873,-500.0,0.00019178,2]
[320353771,1711319444882,-500.0,0.00019178,2]
[320353773,1711319444892,-500.0,0.00019178,2]
[320353774,1711319444902,-500.0,0.00019178,2]
[320353776,1711319444911,-500.0,0.00019178,2]
[320353779,1711319444921,-557.44,0.00019178,2]
[320353780,1711319444930,-593.37,0.00019178,2]
[320353783,1711319444940,-500.0,0.00019178,2]
[320353785,1711319444949,-500.0,0.00019178,2]
[320353787,1711319444958,-520.24307259,0.00019178,2]
[320353789,1711319444967,-151.0,0.00019178,2]
[320353791,1711319444977,-151.0,0.00019178,2]
[320353793,1711319444986,-2100.64,0.00019178,2]
[320353795,1711319444996,-519.49,0.00019178,2]
[320353797,1711319445005,-1282.6,0.00019178,2]
[320353799,1711319445015,-151.0,0.00019178,2]
[320353801,1711319445024,-151.0,0.00019178,2]
[320353803,1711319445034,-643.21,0.00019178,2]
[320353805,1711319445046,-151.0,0.00019178,2]
[320353807,1711319445056,-500.0,0.00019178,2]
[320353809,1711319445065,-151.0,0.00019178,2]
[320353811,1711319445074,-500.0,0.00019178,2]
[320353813,1711319445083,-500.0,0.00019178,2]
[320353815,1711319445093,-500.0,0.00019178,2]
[320353817,1711319445102,-500.0,0.00019178,2]
[320353819,1711319445111,-163.480906,0.00019178,2]
[320353821,1711319445120,-548.76,0.00019178,2]
[320353823,1711319445130,-163.480906,0.00019178,2]
[320353825,1711319445139,-163.480906,0.00019178,2]
[320353827,1711319445148,-500.0,0.00019178,2]
[320353829,1711319445157,-500.0,0.00019178,2]
[320353831,1711319445166,-500.0,0.00019178,2]
[320353833,1711319445175,-500.0,0.00019178,2]
[320353835,1711319445184,-629.19,0.00019178,2]
[320353837,1711319445193,-163.480906,0.00019178,2]
[320353839,1711319445203,-500.0,0.00019178,2]
[320353841,1711319445212,-163.480906,0.00019178,2]
[320353843,1711319445221,-163.480906,0.00019178,2]
[320353845,1711319445231,-1272.98,0.00019178,2]
[320353847,1711319445239,-500.0,0.00019178,2]
[320353849,1711319445249,-500.0,0.00019178,2]
[320353851,1711319445258,-500.0,0.00019178,2]
[320353853,1711319445267,-711.99,0.00019178,2]
[320353855,1711319445277,-500.0,0.00019178,2]
[320353857,1711319445287,-500.0,0.00019178,2]
[320353859,1711319445296,-500.0,0.00019178,2]
[320353861,1711319445306,-500.0,0.00019178,2]
[320353863,1711319445315,-645.4,0.00019178,2]
[320353865,1711319445325,-500.0,0.00019178,2]
[320353867,1711319445335,-500.0,0.00019178,2]
[320353869,1711319445344,-500.0,0.00019178,2]
[320353871,1711319445353,-500.0,0.00019178,2]
[320353873,1711319445362,-497.12945737,0.00019178,2]
[320353875,1711319445372,-500.0,0.00019178,2]
[320353877,1711319445381,-500.0,0.00019178,2]
[320353879,1711319445391,-500.0,0.00019178,2]
[320353881,1711319445401,-500.0,0.00019178,2]
[320353883,1711319445410,-1054.11,0.00019178,2]
[320353886,1711319445419,-692.15,0.00019178,2]
[320353887,1711319445428,-500.0,0.00019178,2]
[320353889,1711319445438,-500.0,0.00019178,2]
[320353891,1711319445448,-500.0,0.00019178,2]
[320353894,1711319445458,-501.48788873,0.00019178,2]
[320353896,1711319445467,-500.0,0.00019178,2]
[320353898,1711319445476,-500.0,0.00019178,2]
[320353900,1711319445486,-500.0,0.00019178,2]
[320353902,1711319445495,-500.0,0.00019178,2]
[320353904,1711319445504,-500.0,0.00019178,2]
[320353906,1711319445514,-501.84396242,0.00019178,2]
[320353908,1711319445527,-500.0,0.00019178,2]
[320353910,1711319445536,-502.07238494,0.00019178,2]
[320353912,1711319445545,-500.0,0.00019178,2]
[320353914,1711319445555,-1135.26,0.00019178,2]
[320353916,1711319445566,-500.0,0.00019178,2]
[320353918,1711319445575,-500.0,0.00019178,2]
[320353920,1711319445584,-500.0,0.00019178,2]
[320353921,1711319445594,-500.0,0.00019178,2]
[320353923,1711319445603,-500.0,0.00019178,2]
[320353925,1711319445615,-500.0,0.00019178,2]
[320353928,1711319445625,-500.0,0.00019178,2]
[320353930,1711319445634,-905.47,0.00019178,2]
[320353932,1711319445644,-170.41308162,0.00019178,2]
[320354025,1711319446313,-329.58691838,0.00019178,2]
[320354027,1711319446322,-500.0,0.00019178,2]
[320354029,1711319446332,-500.0,0.00019178,2]
[320354031,1711319446341,-443.81308162,0.00019178,2]
[320354086,1711319446870,-56.18691838,0.00019178,2]
[320354088,1711319446880,-501.16286385,0.00019178,2]
[320354090,1711319446889,-404.50286125,0.00019178,2]
[320354092,1711319446901,-493.54713875,0.00019178,2]
[320354094,1711319446910,-500.0,0.00019178,2]
[320354096,1711319446919,-391.05978175,0.00019178,2]
[320354100,1711319446951,-108.94021825,0.00019178,2]
[320354102,1711319446960,-298.72409329,0.00019178,2]
[320354104,1711319446972,-201.27590671,0.00019178,2]
[320354106,1711319446981,-500.0,0.00019178,2]
[320354108,1711319446990,-500.0,0.00019178,2]
[320354110,1711319446999,-500.0,0.00019178,2]
[320354112,1711319447008,-500.0,0.00019178,2]
[320354114,1711319447018,-1129.29098335,0.00019178,2]
[320354117,1711319447034,-126.29901665,0.00019178,2]
[320354119,1711319447043,-164.45298335,0.00019178,2]
[320354121,1711319447055,-335.54701665,0.00019178,2]
[320354123,1711319447064,-500.0,0.00019178,2]
[320354125,1711319447073,-500.0,0.00019178,2]
[320354127,1711319447082,-1214.23,0.00019178,2]
[320354129,1711319447092,-500.0,0.00019178,2]
[320354131,1711319447101,-2.25293752,0.00019178,2]
[320354134,1711319447112,-426.37,0.00019178,2]
[320354136,1711319447124,-71.37706248,0.00019178,2]
[320354138,1711319447134,-462.26817888,0.00019178,2]
[320354141,1711319447156,-37.73182112,0.00019178,2]
[320354143,1711319447165,-500.0,0.00019178,2]
[320354145,1711319447174,-1099.93,0.00019178,2]
[320354147,1711319447184,-970.48,0.00019178,2]
[320354149,1711319447194,-500.0,0.00019178,2]
[320354151,1711319447203,-1583.32,0.00019178,2]
[320354153,1711319447212,-500.0,0.00019178,2]
[320354155,1711319447222,-500.0,0.00019178,2]
[320354157,1711319447231,-502.50425588,0.00019178,2]
[320354159,1711319447240,-194.24109091,0.00019178,2]
[320354161,1711319447253,-305.75890909,0.00019178,2]
[320354163,1711319447263,-37.10967662,0.00019178,2]
[320354170,1711319447314,-462.89032338,0.00019178,2]
[320354172,1711319447323,-69.24967662,0.00019178,2]
[320354212,1711319447842,-352.677,0.00018531,2]
[320354214,1711319447851,-1543.86032338,0.00019178,2]
[320354216,1711319447861,-500.0,0.00019178,2]
[320354218,1711319447872,-888.63,0.00019178,2]
[320354220,1711319447881,-500.0,0.00019178,2]
[320354222,1711319447891,-500.0,0.00019178,2]
[320354224,1711319447902,-500.0,0.00019178,2]
[320354226,1711319447911,-500.0,0.00019178,2]
[320354228,1711319447921,-500.0,0.00019178,2]
[320354230,1711319447931,-500.0,0.00019178,2]
[320354232,1711319447940,-500.0,0.00019178,2]
[320354234,1711319447949,-500.0,0.00019178,2]
[320354236,1711319447959,-560.33313972,0.00019178,2]
[320354238,1711319447968,-287.97859125,0.00019178,2]
[320354276,1711319448317,-604.0,0.00018681,2]
[320354278,1711319448328,-1806.33091662,0.00019078,2]
[320354382,1711319450286,-801.0,0.00018681,2]
[320354383,1711319450296,-2477.829,0.00019078,2]
[320354384,1711319627506,2597.1149034,0.00017635,5]
[320354385,1711319849524,7183.68363238,0.00016351,5]
[320354387,1711320632524,-155.0,0.00014906,2]
[320354388,1711320632534,-633.8,0.00014907,2]
[320354389,1711320632543,-160.3192538,0.00015599,2]
[320354391,1711320632552,-5512.89997846,0.00016349,2]
[320354393,1711320632563,-213.44942167,0.0001635,2]
[320354395,1711320632572,-150.0,0.0001635,2]
[320354397,1711320632582,-11846.37865563,0.00016351,2]
[320354399,1711320632593,-1338.731,0.00016351,2]
[320354400,1711320632605,-2440.7251561,0.00016351,2]
[320354402,1711320632617,-3641.24983158,0.00016351,2]
[320354404,1711320632646,-505.85,0.00016351,2]
[320354413,1711320638179,-3467.59170017,0.00016351,2]
[320354414,1711320638192,-768.9677723,0.00016351,2]
[320354415,1711320638235,-18363.58683856,0.00016351,2]
[320354416,1711320638244,-253.6076542,0.00016438,2]
[320354417,1711320638252,-160.31925378,0.00016441,2]
[320354418,1711320638261,-14435.0,0.00016749,2]
[320354419,1711320638270,-2000.0,0.00016774,2]
[320354420,1711320638279,-536.19,0.00016776,2]
[320354421,1711320638288,-250.0,0.00016802,2]
[320354422,1711320638297,-856.0,0.00016841,2]
[320354423,1711320638306,-499.99,0.00016841,2]
[320354424,1711320638316,-169.45,0.00016868,2]
[320354425,1711320638325,-182.49,0.00016957,2]
[320354426,1711320638335,-1379.24,0.00016957,2]
[320354427,1711320638345,-150.0,0.00017063,2]
[320354428,1711320638354,-150.0,0.00017063,2]
[320354429,1711320638364,-180.0,0.00017079,2]
[320354430,1711320638374,-157.18,0.00017126,2]
[320354431,1711320638383,-150.99,0.00017126,2]
[320354432,1711320638394,-633.8,0.0001717,2]
[320354433,1711320638403,-182.49,0.00017251,2]
[320354434,1711320638413,-160.31925378,0.00017283,2]
[320354435,1711320638422,-3675.86,0.00017316,2]
[320354436,1711320638433,-165.89,0.00017401,2]
[320354437,1711320638442,-902.60648178,0.00017416,2]
[320354438,1711320638452,-182.49,0.00017546,2]
[320354439,1711320638461,-166.21,0.00017558,2]
[320354440,1711320638470,-168.59,0.00017808,10]
[320354441,1711320638481,-182.49,0.0001784,2]
[320354442,1711320638490,-700.0,0.000179,6]
[320354443,1711320638499,-1500.0,0.00018,2]
[320354444,1711320638508,-500.0,0.00018,2]
[320354445,1711320638517,-646.0,0.00018,2]
[320354446,1711320638526,-500.0,0.00018,2]
[320354447,1711320638535,-500.0,0.00018,2]
[320354448,1711320638544,-500.0,0.00018,2]
[320354449,1711320638553,-500.0,0.00018,2]
[320354450,1711320638562,-500.0,0.00018,2]
[320354451,1711320638572,-500.0,0.00018,2]
[320354453,1711320638581,-160.31925378,0.00018124,2]
[320354455,1711320638590,-1309.58877861,0.00018136,2]
[320354456,1711320638599,-150.0,0.00018175,2]
[320354458,1711320638609,-5640.602,0.00018328,2]
[320354460,1711320638618,-8507.5054,0.00018328,2]
[320354462,1711320638628,-169.58597724,0.0001833,2]
[320354463,1711320638637,-1502.60848685,0.0001833,2]
[320354465,1711320638646,-645.69072729,0.0001833,2]
[320354467,1711320638655,-154.04454229,0.0001833,2]
[320354469,1711320638665,-645.6907271,0.00018361,2]
[320354470,1711320638674,-645.6907271,0.00018393,2]
[320354472,1711320638683,-800.0,0.00018411,2]
[320354474,1711320638692,-796.02,0.00018419,3]
[320354476,1711320638701,-645.6907271,0.00018424,2]
[320354477,1711320638710,-155.26582782,0.00018427,2]
[320354479,1711320638720,-1217.93391781,0.00018427,2]
[320354481,1711320638730,-457.81549237,0.00018427,2]
[320354483,1711320638740,-2528.03674391,0.00018427,5]
[320354485,1711320638749,-348.96297264,0.00018427,2]
[320354487,1711320638758,-151.032507,0.00018427,2]
[320354489,1711320638767,-151.032507,0.00018427,2]
[320354490,1711320638777,-151.032507,0.00018427,2]
[320354492,1711320638786,-151.032507,0.00018427,2]
[320354494,1711320638795,-151.032507,0.00018427,2]
[320354496,1711320638805,-151.032507,0.00018427,2]
[320354498,1711320638814,-151.032507,0.00018427,2]
[320354500,1711320638823,-151.032507,0.00018427,2]
[320354501,1711320638831,-151.032507,0.00018427,2]
[320354503,1711320638841,-151.032507,0.00018427,3]
[320354505,1711320638851,-151.032507,0.00018427,3]
[320354507,1711320638860,-151.032507,0.00018427,3]
[320354509,1711320638870,-151.032507,0.00018427,3]
[320354511,1711320638881,-151.032507,0.00018427,3]
[320354513,1711320638889,-151.032507,0.00018427,3]
[320354514,1711320638899,-151.032507,0.00018427,3]
[320354516,1711320638908,-151.032507,0.00018427,3]
[320354517,1711320638917,-151.032507,0.00018427,3]
[320354519,1711320638926,-151.032507,0.00018427,3]
[320354520,1711320638935,-151.032507,0.00018427,3]
[320354522,1711320638945,-151.032507,0.00018427,3]
[320354524,1711320638954,-151.032507,0.00018427,3]
[320354526,1711320638964,-323.11942739,0.00018427,5]
[320354527,1711320638973,-679.71524653,0.00018428,2]
[320354529,1711320638983,-8464.42156608,0.00018428,2]
[320354531,1711320638992,-151.032507,0.00018428,2]
[320354533,1711320639001,-151.032507,0.00018428,2]